bitfinex/quotes_BTCUSD_20240717
["timestamp","ask_amount","ask_price","bid_price","bid_amount"]
[1721236344678,0.0817,64193.0,64186.0,0.155795]
[1721236344679,0.155785,64191.0,64186.0,0.155795]
[1721236344899,0.155785,64191.0,64190.0,0.000913]
[1721236345476,0.311546,64196.0,64190.0,0.000913]
[1721236345748,0.155778,64194.0,64190.0,0.000913]
[1721236345938,0.081,64201.0,64190.0,0.000913]
[1721236346146,0.081,64201.0,64195.0,0.155774]
[1721236346147,0.181,64201.0,64195.0,0.155774]
[1721236346279,0.25817479,64201.0,64190.0,0.000913]
[1721236346480,0.155779,64194.0,64191.0,0.00272806]
[1721236346721,0.155779,64194.0,64190.0,0.000913]
[1721236346722,0.155773,64196.0,64190.0,0.312485]
[1721236346899,0.155773,64196.0,64191.0,0.155783]
[1721236347103,0.0090022,64195.0,64191.0,0.155783]
[1721236347459,0.0090022,64195.0,64194.0,0.155777]
[1721236347604,0.155761,64201.0,64194.0,0.311555]
[1721236347806,0.394596,64207.0,64197.0,0.155768]
[1721236348025,0.155759,64202.0,64197.0,0.155768]
[1721236348243,0.00749158,64201.0,64197.0,0.155768]
[1721236348639,0.16325258,64201.0,64196.0,0.155772]
[1721236348844,0.155763,64200.0,64196.0,0.155772]
[1721236349114,0.15578,64193.0,64190.0,0.000913]
[1721236349319,0.155785,64191.0,64190.0,0.000913]
[1721236349509,0.467355,64191.0,64190.0,0.000913]
[1721236349684,0.4748761,64191.0,64190.0,0.000913]
[1721236350055,0.9295461,64191.0,64190.0,0.000913]
[1721236350461,1.08392784,64191.0,64190.0,0.000913]
[1721236350675,0.9295461,64191.0,64190.0,0.000913]
[1721236350871,1.2411161,64191.0,64190.0,0.000913]
[1721236351073,1.49549784,64191.0,64190.0,0.000913]
[1721236351273,1.93481465,64191.0,64190.0,0.000913]
[1721236351473,1.95957676,64191.0,64190.0,0.000913]
[1721236351678,2.06392633,64191.0,64190.0,0.000913]
[1721236351879,1.93395586,64191.0,64190.0,0.000913]
[1721236352081,1.93388818,64191.0,64190.0,0.000913]
[1721236352330,1.90950908,64191.0,64190.0,0.000913]
[1721236352504,1.88481465,64191.0,64190.0,0.000913]
[1721236352679,1.90950898,64191.0,64190.0,0.000913]
[1721236353307,1.88481465,64191.0,64190.0,0.000913]
[1721236353893,2.08916422,64191.0,64190.0,0.000913]
[1721236354576,1.93481465,64191.0,64190.0,0.000913]
[1721236354986,2.24638465,64191.0,64190.0,0.000913]
[1721236355139,2.26938465,64191.0,64190.0,0.000913]
[1721236355765,1.95781465,64191.0,64190.0,0.000913]
[1721236356213,1.90781465,64191.0,64190.0,0.000913]
[1721236356639,1.57324465,64191.0,64190.0,0.000913]
[1721236358310,1.49549784,64191.0,64190.0,0.000913]
[1721236358670,0.8636461,64191.0,64190.0,0.000913]
[1721236358880,0.0075211,64191.0,64190.0,0.000913]
[1721236359082,0.0075211,64191.0,64190.0,0.067513]
[1721236359315,0.0075211,64191.0,64190.0,0.61619052]
[1721236359527,0.44204001,64202.0,64190.0,0.61619052]
[1721236359528,0.75355901,64202.0,64193.0,0.311557]
[1721236359726,0.75355901,64202.0,64196.0,0.155772]
[1721236359727,0.155763,64200.0,64196.0,0.155772]
[1721236360050,0.00083,64204.0,64190.0,0.145713]
[1721236360231,0.00083,64204.0,64201.0,0.15576]
[1721236360232,0.00752117,64203.0,64201.0,0.15576]
[1721236360437,0.00752117,64203.0,64197.0,0.311541]
[1721236360438,0.00752117,64203.0,64202.0,0.467274]
[1721236360644,0.00083,64204.0,64203.0,0.155755]
[1721236360900,0.00834163,64204.0,64203.0,0.155755]
[1721236361112,0.00083,64204.0,64203.0,0.155755]
[1721236361308,0.00834163,64204.0,64202.0,0.222158]
[1721236361530,0.00834163,64204.0,64203.0,0.00272806]
[1721236361531,0.00083,64204.0,64203.0,0.00272806]
[1721236361703,0.00083,64204.0,64201.0,0.00272806]
[1721236361704,0.00751456,64203.0,64201.0,0.00272806]
[1721236361904,0.00083,64204.0,64201.0,0.00272806]
[1721236362109,0.00797809,64202.0,64201.0,0.15848806]
[1721236362308,0.00083,64204.0,64200.0,0.155762]
[1721236362554,0.5524282,64202.0,64201.0,0.00272806]
[1721236362771,0.0812,64203.0,64192.0,0.00272806]
[1721236362971,0.00806543,64202.0,64192.0,0.311562]
[1721236363172,0.155764,64200.0,64195.0,0.155774]
[1721236363580,0.00805794,64199.0,64195.0,0.155774]
[1721236363782,0.00805794,64199.0,64193.0,0.311559]
[1721236363984,0.00805794,64199.0,64196.0,0.155771]
[1721236364227,0.31234,64204.0,64193.0,0.46594074]
[1721236364228,0.00083,64204.0,64193.0,0.46594074]
[1721236364458,0.00083,64204.0,64197.0,0.467311]
[1721236364459,0.00804993,64198.0,64197.0,0.467311]
[1721236364671,0.00083,64204.0,64203.0,0.155755]
[1721236364876,0.00888125,64204.0,64200.0,0.155761]
[1721236365086,0.00888125,64204.0,64202.0,0.155758]
[1721236365296,0.00888125,64204.0,64197.0,0.0629]
[1721236365297,0.00888125,64204.0,64203.0,0.47038094]
[1721236365536,0.00888125,64204.0,64203.0,0.155755]
[1721236365899,0.00888125,64204.0,64203.0,0.467266]
[1721236367578,0.00888125,64204.0,64203.0,0.155755]
[1721236368343,0.311521,64201.0,64194.0,0.0611]
[1721236368557,0.311521,64201.0,64190.0,0.000913]
[1721236368558,0.38872479,64195.0,64190.0,0.000913]
[1721236368768,0.31155,64195.0,64190.0,0.000913]
[1721236368968,0.155781,64193.0,64190.0,0.000913]
[1721236369341,0.467355,64191.0,64190.0,0.000913]
[1721236369540,0.155785,64191.0,64190.0,0.000913]
[1721236369746,0.47552208,64191.0,64190.0,0.000913]
[1721236369948,1.09866208,64191.0,64190.0,0.000913]
[1721236370935,0.47552208,64191.0,64190.0,0.000913]
[1721236371344,0.00816708,64191.0,64190.0,0.000913]
[1721236371749,0.1,64194.0,64190.0,0.000913]
[1721236371949,0.00811964,64191.0,64190.0,0.1567]
[1721236372226,0.155777,64195.0,64191.0,0.0629]
[1721236372512,0.311546,64196.0,64191.0,0.0629]
[1721236372513,0.16389667,64194.0,64191.0,0.0629]
[1721236372806,0.00811867,64194.0,64191.0,0.0629]
[1721236373034,0.00811867,64194.0,64193.0,0.7789]
[1721236373171,0.155761,64201.0,64196.0,0.155771]
[1721236373610,0.155761,64201.0,64194.0,0.311554]
[1721236373611,0.00812313,64200.0,64195.0,0.155775]
[1721236373817,0.467296,64199.0,64194.0,0.155777]
[1721236374019,0.0081284,64198.0,64197.0,0.155768]
[1721236374216,0.59779901,64202.0,64197.0,0.155768]
[1721236374625,0.00812733,64201.0,64197.0,0.155768]
[1721236375038,0.00812733,64201.0,64198.0,0.00311512]
[1721236375382,0.00812733,64201.0,64200.0,0.467289]
[1721236375790,0.00083,64204.0,64203.0,0.467266]
[1721236377529,0.00083,64204.0,64203.0,0.778777]
[1721236377982,0.00083,64204.0,64203.0,0.467266]
[1721236379805,0.00083,64204.0,64190.0,0.312487]
[1721236380073,0.155771,64197.0,64192.0,0.15851006]
[1721236380325,0.155773,64196.0,64192.0,0.155782]
[1721236380509,0.155773,64196.0,64190.0,0.000913]
[1721236380510,0.00821317,64196.0,64190.0,0.000913]
[1721236380710,0.155785,64191.0,64190.0,0.000913]
[1721236380920,0.85609979,64191.0,64190.0,0.000913]
[1721236381086,0.86428983,64191.0,64190.0,0.000913]
[1721236381304,1.17585983,64191.0,64190.0,0.000913]
[1721236382051,1.27585983,64191.0,64190.0,0.000913]
[1721236383585,1.19868504,64191.0,64190.0,0.000913]
[1721236384285,1.17368504,64191.0,64190.0,0.000913]
[1721236386733,0.86211504,64191.0,64190.0,0.000913]
[1721236386936,0.10819004,64191.0,64190.0,0.000913]
[1721236387137,0.00819004,64191.0,64190.0,0.000913]
[1721236387545,0.1,64194.0,64190.0,0.000913]
[1721236387769,0.311552,64195.0,64190.0,0.064713]
[1721236387770,0.00856624,64191.0,64190.0,0.064713]
[1721236387977,0.155781,64193.0,64190.0,0.064713]
[1721236388180,0.00856331,64191.0,64190.0,0.064713]
[1721236388404,0.155781,64193.0,64190.0,0.064713]
[1721236388612,0.00856475,64191.0,64190.0,0.064713]
[1721236388768,0.155784,64192.0,64190.0,0.064713]
[1721236388980,0.16434975,64191.0,64190.0,0.000913]
[1721236389421,0.00856475,64191.0,64190.0,0.000913]
[1721236389639,0.00856475,64191.0,64190.0,0.624063]
[1721236389825,0.44204001,64199.0,64190.0,0.15529474]
[1721236390047,0.44204001,64199.0,64198.0,0.610404]
[1721236390250,0.44204001,64199.0,64198.0,0.92194]
[1721236390654,0.44204001,64199.0,64198.0,0.298868]
[1721236390863,0.44204001,64199.0,64198.0,0.467304]
[1721236391164,0.44204001,64199.0,64190.0,0.000913]
[1721236391165,0.155769,64198.0,64194.0,0.155777]
[1721236391579,0.44204001,64199.0,64194.0,0.311551]
[1721236391789,0.59780701,64199.0,64194.0,0.155775]
[1721236391992,0.15577,64197.0,64192.0,0.063]
[1721236392201,0.311525,64201.0,64192.0,0.063]
[1721236392350,0.155768,64198.0,64194.0,0.155775]
[1721236392563,0.155766,64199.0,64194.0,0.155775]
[1721236393118,0.07800479,64204.0,64202.0,0.155757]
[1721236393119,0.00083,64204.0,64202.0,0.155757]
[1721236393418,0.00083,64204.0,64200.0,0.467284]
[1721236394006,0.156583,64204.0,64200.0,0.155762]
[1721236394172,0.156583,64204.0,64197.0,0.311539]
[1721236394173,0.00083,64204.0,64199.0,0.311528]
[1721236394375,0.00083,64204.0,64202.0,0.155757]
[1721236394569,0.00083,64204.0,64201.0,0.15576]
[1721236394774,0.00083,64204.0,64198.0,0.311533]
[1721236395020,0.156583,64204.0,64200.0,0.155762]
[1721236395420,0.00083,64204.0,64200.0,0.311524]
[1721236395620,0.156584,64204.0,64200.0,0.155762]
[1721236395962,0.155759,64202.0,64197.0,0.155769]
[1721236396152,0.07717479,64203.0,64190.0,0.000913]
[1721236396353,0.155774,64196.0,64192.0,0.155782]
[1721236396563,0.155771,64197.0,64190.0,0.000913]
[1721236396754,0.00083,64204.0,64191.0,0.00272806]
[1721236396901,0.155768,64198.0,64194.0,0.155777]
[1721236397268,0.00083,64204.0,64194.0,0.155777]
[1721236397269,0.16441259,64197.0,64194.0,0.155777]
[1721236397669,0.07717479,64195.0,64190.0,0.000913]
[1721236397883,0.467355,64191.0,64190.0,0.000913]
[1721236398028,1.22420674,64191.0,64190.0,0.000913]
[1721236398228,1.96031954,64191.0,64190.0,0.000913]
[1721236398438,2.05306997,64191.0,64190.0,0.000913]
[1721236398663,2.12878037,64191.0,64190.0,0.000913]
[1721236398925,1.88168037,64191.0,64190.0,0.000913]
[1721236399655,1.10415863,64191.0,64190.0,0.000913]
[1721236399853,1.02844823,64191.0,64190.0,0.000913]
[1721236400275,1.34001823,64191.0,64190.0,0.000913]
[1721236400892,0.96344823,64191.0,64190.0,0.000913]
[1721236401144,0.88754823,64191.0,64190.0,0.000913]
[1721236401353,1.35349997,64191.0,64190.0,0.000913]
[1721236401711,1.87813849,64191.0,64190.0,0.000913]
[1721236401823,1.97297064,64191.0,64190.0,0.000913]
[1721236402025,1.99734941,64191.0,64190.0,0.000913]
[1721236402225,1.92821625,64191.0,64190.0,0.000913]
[1721236402424,1.97297292,64191.0,64190.0,0.000913]
[1721236402930,2.65296415,64191.0,64190.0,0.000913]
[1721236403130,2.65296415,64191.0,64174.0,0.000913]
[1721236403131,1.592728,64188.0,64174.0,0.000913]
[1721236403383,0.779117,64175.0,64174.0,0.000913]
[1721236403551,1.56941426,64175.0,64174.0,0.000913]
[1721236403767,1.93940839,64175.0,64174.0,0.000913]
[1721236403972,2.25105539,64175.0,64174.0,0.000913]
[1721236404180,1.91240839,64175.0,64174.0,0.000913]
[1721236404372,1.96240839,64175.0,64174.0,0.000913]
[1721236405228,1.91240839,64175.0,64174.0,0.000913]
[1721236406001,1.27831113,64175.0,64174.0,0.000913]
[1721236407025,0.88746413,64175.0,64174.0,0.000913]
[1721236407441,1.19911113,64175.0,64174.0,0.000913]
[1721236407691,0.88746413,64175.0,64174.0,0.000913]
[1721236408271,1.19911113,64175.0,64174.0,0.000913]
[1721236408639,1.66513987,64175.0,64174.0,0.000913]
[1721236409655,1.95908944,64175.0,64174.0,0.000913]
[1721236409844,1.82773987,64175.0,64174.0,0.000913]
[1721236410052,1.80473987,64175.0,64174.0,0.000913]
[1721236410224,1.85473987,64175.0,64174.0,0.000913]
[1721236410543,2.27236381,64175.0,64174.0,0.000913]
[1721236411227,2.71440382,64175.0,64174.0,1e-06]
[1721236411459,2.86875339,64175.0,64174.0,1e-06]
[1721236411670,2.89569185,64175.0,64174.0,1e-06]
[1721236412284,2.86875339,64175.0,64174.0,1e-06]
[1721236412431,2.89618137,64175.0,64174.0,1e-06]
[1721236413250,2.40275682,64175.0,64174.0,1e-06]
[1721236413836,2.71440382,64175.0,64174.0,1e-06]
[1721236414684,2.35275682,64175.0,64174.0,1e-06]
[1721236414836,2.40275682,64175.0,64174.0,1e-06]
[1721236415289,2.35275682,64175.0,64174.0,1e-06]
[1721236415490,2.48410639,64175.0,64174.0,1e-06]
[1721236415690,2.32975682,64175.0,64174.0,1e-06]
[1721236415865,2.24677988,64175.0,64174.0,1e-06]
[1721236416068,2.14677988,64175.0,64174.0,1e-06]
[1721236416273,2.08337988,64175.0,64174.0,1e-06]
[1721236417320,1.79553288,64175.0,64174.0,1e-06]
[1721236418310,1.22950414,64175.0,64174.0,1e-06]
[1721236419083,1.22950414,64175.0,64174.0,0.064401]
[1721236419084,0.00834713,64175.0,64174.0,0.064401]
[1721236419315,0.15582,64177.0,64174.0,0.064401]
[1721236419482,0.44204001,64186.0,64178.0,0.155815]
[1721236419684,0.44204001,64186.0,64174.0,0.064401]
[1721236419685,0.155803,64184.0,64180.0,0.155811]
[1721236419887,0.44204001,64186.0,64178.0,0.311632]
[1721236419888,0.311602,64185.0,64178.0,0.311632]
[1721236420091,0.155805,64183.0,64179.0,0.15854006]
[1721236420658,0.155789,64190.0,64185.0,0.155799]
[1721236420794,0.77460471,64194.0,64186.0,0.00272806]
[1721236420994,0.07717479,64193.0,64185.0,0.00272806]
[1721236421200,0.07717479,64193.0,64183.0,0.0639]
[1721236421201,0.155795,64187.0,64184.0,0.00272806]
[1721236421599,0.155792,64188.0,64184.0,0.00272806]
[1721236422010,0.311567,64192.0,64184.0,0.31432706]
[1721236422369,0.311567,64192.0,64185.0,0.0804]
[1721236422508,0.311567,64192.0,64186.0,0.00272806]
[1721236422720,0.00083,64204.0,64187.0,0.0639]
[1721236422917,0.155763,64200.0,64191.0,0.311568]
[1721236423118,0.00083,64204.0,64193.0,0.0804]
[1721236423387,0.00083,64204.0,64199.0,0.155763]
[1721236424092,0.156583,64204.0,64199.0,0.155763]
[1721236424322,0.156583,64204.0,64198.0,0.155766]
[1721236424323,0.23375979,64204.0,64198.0,0.155766]
[1721236424524,0.155765,64199.0,64193.0,0.0804]
[1721236424906,0.155765,64199.0,64195.0,0.155774]
[1721236427230,0.00844718,64198.0,64195.0,0.155774]
[1721236428012,0.16421518,64198.0,64194.0,0.155777]
[1721236428468,0.16421518,64198.0,64193.0,0.0804]
[1721236428469,0.155777,64194.0,64193.0,0.0804]
[1721236428645,0.00844718,64198.0,64193.0,0.0804]
[1721236428866,0.155766,64199.0,64195.0,0.155774]
[1721236429063,0.311517,64202.0,64193.0,0.0804]
[1721236429254,0.07800479,64204.0,64195.0,0.155774]
[1721236429255,0.155766,64199.0,64195.0,0.155774]
[1721236430035,0.311521,64201.0,64193.0,0.0804]
[1721236430236,0.155776,64195.0,64193.0,0.0804]
[1721236430438,0.311551,64195.0,64192.0,0.0639]
[1721236430642,0.07717479,64198.0,64186.0,0.0797]
[1721236430643,0.155794,64187.0,64186.0,0.0797]
[1721236430840,0.155797,64186.0,64185.0,0.0603]
[1721236431360,0.155787,64190.0,64185.0,0.0603]
[1721236431583,0.311577,64190.0,64186.0,0.00272806]
[1721236431721,0.67359654,64198.0,64186.0,0.00272806]
[1721236431924,0.15579,64189.0,64186.0,0.00272806]
[1721236432190,0.155797,64186.0,64185.0,0.0603]
[1721236432396,0.467391,64186.0,64185.0,0.0603]
[1721236432713,0.467391,64186.0,64180.0,0.0797]
[1721236432714,0.31161,64183.0,64180.0,0.0797]
[1721236433074,0.155809,64181.0,64180.0,0.0797]
[1721236433721,0.467434,64180.0,64179.0,0.0648]
[1721236434525,0.311611,64183.0,64179.0,0.0648]
[1721236434725,0.311611,64183.0,64180.0,0.00272806]
[1721236434928,0.311571,64191.0,64180.0,0.00272806]
[1721236435291,0.1558,64185.0,64181.0,0.155808]
[1721236435484,0.311582,64189.0,64182.0,0.31434006]
[1721236435769,0.311582,64189.0,64182.0,0.00272806]
[1721236435969,0.311582,64189.0,64182.0,0.15853306]
[1721236435970,0.155799,64186.0,64182.0,0.15853306]
[1721236436345,0.155794,64188.0,64183.0,0.155803]
[1721236436546,0.155794,64188.0,64184.0,0.00272806]
[1721236437421,0.311582,64189.0,64184.0,0.00272806]
[1721236437550,0.311582,64189.0,64183.0,0.00272806]
[1721236437551,0.155799,64186.0,64183.0,0.00272806]
[1721236438545,0.130799,64186.0,64183.0,0.00272806]
[1721236440351,0.07717479,64184.0,64183.0,0.00272806]
[1721236440638,0.779117,64175.0,64174.0,1e-06]
[1721236440971,2.10406753,64175.0,64174.0,1e-06]
[1721236441196,2.92161644,64175.0,64174.0,1e-06]
[1721236441807,3.07596601,64175.0,64174.0,1e-06]
[1721236441962,3.08508072,64175.0,64174.0,1e-06]
[1721236442582,3.11211186,64175.0,64174.0,1e-06]
[1721236442793,3.08508072,64175.0,64174.0,1e-06]
[1721236443247,2.65073115,64175.0,64174.0,1e-06]
[1721236443420,2.93073115,64175.0,64174.0,1e-06]
[1721236444575,2.18026236,64175.0,64174.0,1e-06]
[1721236444888,1.95026236,64175.0,64174.0,1e-06]
[1721236445284,2.23026236,64175.0,64174.0,1e-06]
[1721236445544,2.23026236,64175.0,64152.0,0.00272806]
[1721236445545,1.455393,64153.0,64152.0,0.00272806]
[1721236445753,1.455393,64153.0,64136.0,0.071574]
[1721236445754,0.779397,64152.0,64136.0,0.009174]
[1721236445961,1.41853774,64152.0,64151.0,9e-07]
[1721236446168,2.04205574,64152.0,64151.0,9e-07]
[1721236446371,2.05091048,64152.0,64151.0,9e-07]
[1721236446562,2.20526005,64152.0,64151.0,9e-07]
[1721236447185,2.25605525,64152.0,64151.0,9e-07]
[1721236447748,2.20526005,64152.0,64151.0,9e-07]
[1721236448883,2.15526005,64152.0,64151.0,9e-07]
[1721236449228,2.20526005,64152.0,64151.0,9e-07]
[1721236450276,2.20526005,64152.0,64136.0,0.009174]
[1721236450277,1.14109074,64139.0,64136.0,0.009174]
[1721236450503,1.14109074,64139.0,64125.0,0.009174]
[1721236450504,0.467827,64126.0,64125.0,0.009174]
[1721236450703,1.83786374,64126.0,64125.0,0.009174]
[1721236450907,1.61734792,64126.0,64125.0,0.009174]
[1721236451113,1.71734792,64126.0,64125.0,0.009174]
[1721236451354,2.05223292,64126.0,64125.0,0.009174]
[1721236451575,2.2451528,64126.0,64125.0,0.009174]
[1721236451814,2.52407134,64126.0,64125.0,0.009174]
[1721236451984,2.57486654,64126.0,64125.0,0.009174]
[1721236452186,2.5251528,64126.0,64125.0,0.009174]
[1721236452337,2.2451528,64126.0,64125.0,0.009174]
[1721236452538,2.1943576,64126.0,64125.0,0.009174]
[1721236452740,2.24407134,64126.0,64125.0,0.009174]
[1721236453135,1.66655272,64126.0,64125.0,0.009174]
[1721236455556,1.35466772,64126.0,64125.0,0.009174]
[1721236456953,1.66655272,64126.0,64125.0,0.009174]
[1721236457560,1.35466772,64126.0,64125.0,0.009174]
[1721236458629,1.66655272,64126.0,64125.0,0.009174]
[1721236458833,1.87061603,64126.0,64125.0,0.009174]
[1721236458972,1.87061603,64126.0,64104.0,0.0751]
[1721236458973,1.168345,64088.0,64087.0,0.0237379]
[1721236459176,1.168345,64088.0,64066.0,0.04997114]
[1721236459177,0.09363,64087.0,64055.0,0.06894964]
[1721236459378,0.09363,64087.0,64044.0,0.351]
[1721236459379,0.0761,64064.0,64044.0,0.351]
[1721236459573,0.19820257,64086.0,64044.0,0.28]
[1721236459574,0.156126,64051.0,64044.0,0.28]
[1721236459777,0.1,64069.0,64044.0,0.28]
[1721236459778,0.00735586,64063.0,64044.0,0.28]
[1721236460140,0.00735586,64063.0,64035.0,0.312324]
[1721236460141,0.00731165,64050.0,64049.0,0.61619]
[1721236460445,0.156093,64065.0,64052.0,0.0651]
[1721236460649,0.002794,64064.0,64052.0,0.0651]
[1721236460849,0.156103,64060.0,64052.0,0.0651]
[1721236460995,0.00712169,64064.0,64053.0,0.46662274]
[1721236461200,0.002794,64082.0,64053.0,0.46662274]
[1721236461201,0.002794,64068.0,64067.0,0.468259]
[1721236461548,0.05,64101.0,64067.0,0.468259]
[1721236461549,0.312081,64086.0,64067.0,0.58218174]
[1721236461777,0.312081,64086.0,64068.0,0.15438174]
[1721236461778,0.314898,64082.0,64068.0,0.15438174]
[1721236461969,0.314898,64082.0,64067.0,0.4278]
[1721236461970,0.156079,64070.0,64069.0,0.0645]
[1721236462167,0.312142,64074.0,64069.0,0.0645]
[1721236462385,0.07717479,64082.0,64069.0,0.0645]
[1721236462386,0.156079,64070.0,64069.0,0.0645]
[1721236462941,0.468237,64070.0,64069.0,0.0645]
[1721236463151,0.468237,64070.0,64060.0,0.070185]
[1721236463152,0.468303,64061.0,64060.0,0.070185]
[1721236463327,0.156101,64061.0,64060.0,0.070185]
[1721236463527,0.15438174,64070.0,64060.0,0.070185]
[1721236463528,0.31216,64070.0,64060.0,0.070185]
[1721236463783,0.156087,64067.0,64060.0,0.070185]
[1721236463981,0.31216,64070.0,64060.0,0.070185]
[1721236464237,0.57834871,64098.0,64061.0,0.00312169]
[1721236464686,0.57834871,64098.0,64067.0,0.156085]
[1721236464687,0.002794,64071.0,64067.0,0.156085]
[1721236464952,0.312135,64075.0,64063.0,0.156096]
[1721236464953,0.156083,64069.0,64063.0,0.156096]
[1721236465215,0.156083,64069.0,64064.0,0.156092]
[1721236465474,0.156083,64069.0,64063.0,0.156095]
[1721236465683,0.312139,64074.0,64066.0,0.156087]
[1721236465888,0.312104,64082.0,64066.0,0.156087]
[1721236465889,0.002794,64073.0,64072.0,0.312148]
[1721236466095,0.002794,64081.0,64072.0,0.46652974]
[1721236466295,0.002794,64087.0,64073.0,0.22008174]
[1721236466500,0.156044,64085.0,64078.0,0.468175]
[1721236466837,0.468208,64074.0,64073.0,0.0657]
[1721236467274,0.780347,64074.0,64073.0,0.0657]
[1721236468446,0.780347,64074.0,64060.0,0.633595]
[1721236468447,1.404909,64061.0,64060.0,0.009185]
[1721236468696,1.24708874,64061.0,64060.0,0.009185]
[1721236468905,1.34708874,64061.0,64060.0,0.009185]
[1721236470254,1.65929074,64061.0,64060.0,0.009185]
[1721236470452,1.68229074,64061.0,64060.0,0.009185]
[1721236472244,2.28824231,64061.0,64060.0,0.009185]
[1721236472452,1.82169074,64061.0,64060.0,0.009185]
[1721236473275,2.18389274,64061.0,64060.0,0.009185]
[1721236473662,1.82169074,64061.0,64060.0,0.009185]
[1721236473830,1.03488674,64061.0,64060.0,0.069285]
[1721236474287,1.03488674,64061.0,64060.0,0.009185]
[1721236474711,1.34708874,64061.0,64060.0,0.009185]
[1721236476791,1.03488674,64061.0,64060.0,0.009185]
[1721236479142,0.46584271,64080.0,64060.0,0.165287]
[1721236479366,0.46584271,64080.0,64060.0,0.009185]
[1721236479367,0.69460524,64079.0,64060.0,0.009185]
[1721236479604,0.69460524,64061.0,64060.0,0.009185]
[1721236479773,1.77796553,64061.0,64060.0,0.009185]
[1721236479976,1.82796553,64061.0,64060.0,0.009185]
[1721236480176,0.05,64060.0,64030.0,0.1]
[1721236480356,0.156169,64033.0,64030.0,0.1]
[1721236480593,0.312331,64035.0,64030.0,0.1]
[1721236480805,0.156167,64034.0,64030.0,0.1]
[1721236481015,0.1,64047.0,64030.0,0.1]
[1721236481215,0.46304871,64056.0,64030.0,0.1]
[1721236481216,0.156154,64040.0,64030.0,0.1]
[1721236481418,0.156154,64040.0,64033.0,0.156167]
[1721236481621,0.312301,64041.0,64032.0,0.312342]
[1721236481622,0.15615,64041.0,64032.0,0.312342]
[1721236481966,0.002794,64064.0,64039.0,0.0661]
[1721236481967,0.46304871,64055.0,64039.0,0.0661]
[1721236482178,0.46304871,64055.0,64051.0,0.156124]
[1721236482337,0.46304871,64055.0,64039.0,0.22048174]
[1721236482338,0.0764,64069.0,64043.0,0.312289]
[1721236482544,0.0764,64069.0,64039.0,0.378406]
[1721236482545,0.52854871,64057.0,64039.0,0.378406]
[1721236482744,0.15438174,64063.0,64047.0,0.156134]
[1721236482946,0.15438174,64063.0,64046.0,0.156137]
[1721236482947,0.156127,64051.0,64046.0,0.156137]
[1721236483104,0.312253,64051.0,64041.0,0.312298]
[1721236483509,0.312243,64053.0,64041.0,0.312298]
[1721236483510,0.156128,64050.0,64045.0,0.156139]
[1721236483718,0.15612,64054.0,64045.0,0.31228]
[1721236484102,0.15612,64054.0,64048.0,0.156131]
[1721236484103,0.1,64053.0,64048.0,0.156131]
[1721236484217,0.1,64053.0,64046.0,0.312271]
[1721236484415,0.1,64053.0,64048.0,0.156132]
[1721236484416,0.256121,64053.0,64048.0,0.156132]
[1721236484618,0.312203,64061.0,64051.0,0.312249]
[1721236484619,0.312216,64059.0,64051.0,0.312249]
[1721236484817,0.156109,64058.0,64053.0,0.156119]
[1721236485022,0.1,64057.0,64052.0,0.156122]
[1721236485228,0.1,64057.0,64053.0,0.156119]
[1721236485861,0.156116,64055.0,64050.0,0.156128]
[1721236486032,0.1,64057.0,64049.0,0.312256]
[1721236486238,0.1,64057.0,64039.0,0.0661]
[1721236486537,0.156108,64058.0,64054.0,0.156118]
[1721236486736,0.156108,64058.0,64053.0,0.15612]
[1721236486986,0.1,64057.0,64053.0,0.14873]
[1721236487417,0.256111,64057.0,64053.0,0.14873]
[1721236487624,0.1,64057.0,64053.0,0.14873]
[1721236487828,0.1,64057.0,64047.0,0.312266]
[1721236487829,0.15438174,64056.0,64038.0,0.0816]
[1721236488032,0.15438174,64056.0,64040.0,0.12965828]
[1721236488204,0.156132,64049.0,64043.0,0.156144]
[1721236488409,0.31228,64045.0,64044.0,0.12965828]
[1721236488766,0.05,64066.0,64044.0,0.12965828]
[1721236488767,0.156116,64055.0,64050.0,0.156127]
[1721236488960,0.156115,64056.0,64051.0,0.156125]
[1721236489144,0.1,64055.0,64051.0,0.156125]
[1721236489746,0.1,64055.0,64052.0,0.156121]
[1721236490092,0.312251,64051.0,64043.0,0.312286]
[1721236490297,0.15584574,64049.0,64045.0,0.156139]
[1721236490427,0.15613,64050.0,64045.0,0.156139]
[1721236490631,0.15613,64050.0,64046.0,0.12966492]
[1721236490830,0.15613,64050.0,64045.0,0.156139]
[1721236491032,0.15613,64050.0,64046.0,0.12966527]
[1721236491235,0.156131,64049.0,64045.0,0.156139]
[1721236491439,0.46661974,64054.0,64046.0,0.312274]
[1721236491640,0.46661974,64054.0,64047.0,0.312268]
[1721236491641,0.15438174,64054.0,64047.0,0.312268]
[1721236491862,0.1,64055.0,64050.0,0.156126]
[1721236491863,0.256116,64055.0,64050.0,0.156126]
[1721236492100,0.256116,64055.0,64051.0,0.156125]
[1721236492835,0.256117,64055.0,64049.0,0.156128]
[1721236493030,0.1,64055.0,64050.0,0.156127]
[1721236493279,0.256116,64055.0,64050.0,0.156127]
[1721236493796,0.256116,64055.0,64049.0,0.156129]
[1721236493797,0.156119,64054.0,64049.0,0.156129]
[1721236494091,0.1,64055.0,64048.0,0.156132]
[1721236494318,0.156123,64052.0,64048.0,0.156132]
[1721236494469,0.312263,64049.0,64039.0,0.378407]
[1721236494682,0.156135,64047.0,64042.0,0.156146]
[1721236494882,0.156135,64047.0,64043.0,0.12966368]
[1721236495084,0.156135,64047.0,64044.0,0.12966368]
[1721236495286,0.156139,64046.0,64045.0,0.12966368]
[1721236496069,0.319264,64049.0,64045.0,0.12966368]
[1721236496260,0.319264,64049.0,64048.0,0.001]
[1721236496460,0.787658,64049.0,64048.0,0.001]
[1721236496656,0.156136,64047.0,64042.0,0.156147]
[1721236496856,0.002,64046.0,64043.0,0.129667]
[1721236497100,0.158138,64046.0,64044.0,0.129667]